[Event "7th Iberoamerican-ch 2019"]
[Site "Linares"]
[Date "2019.08.14"]
[Round "5.2"]
[White "Henriquez Villagra, Cristobal"]
[Black "Delgado Ramirez, Neuris"]
[Result "1/2-1/2"]
[ECO "B52"]
[WhiteElo "2562"]
[BlackElo "2612"]
[Annotator "ChessBase"]
[PlyCount "96"]
[EventDate "2019.08.10"]
[EventType "swiss"]
[EventCountry "ESP"]
[SourceTitle "playchess.com"]
[Source "ChessBase"]
[SourceQuality "1"]
[TimeControl "5400+30"]

1. e4 {[%emt 0:01:06]} c5 {[%emt 0:00:00]} 2. Nf3 {[%emt 0:00:06]} d6 {[%emt 0:00:00]} 3. Bb5+ {[%emt 0:00:06]} Bd7 {[%emt 0:00:00]} 4. Bxd7+ {[%emt 0:00:59]} Nxd7 {[%emt 0:00:05]} 5. O-O {[%emt 0:00:40]} Ngf6 {[%emt 0:00:15]} 6. Qe2 {[%emt 0:00:53]} Rc8 {[%emt 0:01:53]} 7. b3 {[%emt 0:02:20]} e6 {[%emt 0:01:26]} 8. Bb2 {[%emt 0:02:17]} Be7 {[%emt 0:02:18]} 9. c4 {[%emt 0:01:14]} O-O {[%emt 0:00:10]} 10. Nc3 {[%emt 0:01:27]} a6 {[%emt 0:03:12]} 11. d4 {[%emt 0:01:30]} cxd4 {[%emt 0:00:07]} 12. Nxd4 {[%emt 0:00:05]} Re8 {[%emt 0:02:28]} 13. Rad1 {[%emt 0:06:44]} Qc7 {[%emt 0:01:29]} 14. Rfe1 {[%emt 0:09:42]} Bf8 {[%emt 0:00:11]} 15. Kh1 {[%emt 0:02:19]} Qa5 {[%emt 0:06:32]} 16. f4 {[%emt 0:14:04]} e5 {[%emt 0:03:22]} 17. Nf5 {[%emt 0:03:37]} exf4 {[%emt 0:08:57]} 18. Qf3 {[%emt 0:12:18]} Re6 {[%emt 0:02:50]} 19. Qxf4 {[%emt 0:02:24]} Rce8 {[%emt 0:01:02]} 20. Rf1 {[%emt 0:00:39]} Ne5 {[%emt 0:05:16]} 21. Nd5 {[%emt 0:04:39]} Nfd7 {[%emt 0:04:02]} 22. c5 {[%emt 0:08:45]} dxc5 {[%emt 0:04:30]} 23. Nde3 {[%emt 0:09:55]} f6 {[%emt 0:07:00]} 24. Qg3 {[%emt 0:00:16]} Kh8 {[%emt 0:00:24]} 25. Nc4 {[%emt 0:00:57]} Qc7 {[%emt 0:02:52]} 26. Ncd6 {[%emt 0:01:30]} Rxd6 {[%emt 0:00:49]} 27. Rxd6 {[%emt 0:00:04]} g6 {[%emt 0:02:34]} 28. Bxe5 {[%emt 0:01:47]} Nxe5 {[%emt 0:01:06]} 29. Rxf6 {[%emt 0:02:13]} gxf5 {[%emt 0:00:12]} 30. exf5 {[%emt 0:00:26]} Qg7 {[%emt 0:04:32]} 31. Qxg7+ {[%emt 0:00:33]} Kxg7 {[%emt 0:00:27]} 32. Rb6 {[%emt 0:00:04]} Rb8 {[%emt 0:01:28]} 33. Rd1 {[%emt 0:00:03]} Kg8 {[%emt 0:02:26]} 34. Re6 {[%emt 0:01:45]} Nc6 {[%emt 0:00:34]} 35. Rd7 {[%emt 0:02:00]} Rd8 {[%emt 0:03:48]} 36. Rxd8 {[%emt 0:00:24]} Nxd8 {[%emt 0:00:02]} 37. Rb6 {[%emt 0:01:04]} Kf7 {[%emt 0:00:43]} 38. g4 {[%emt 0:00:15]} Ke7 {[%emt 0:01:34]} 39. g5 {[%emt 0:00:41]} Kd7 {[%emt 0:00:10]} 40. g6 {[%emt 0:00:21]} hxg6 {[%emt 0:00:07]} 41. Rxg6 {[%emt 0:00:02]} Nc6 {[%emt 0:01:59]} 42. h4 {[%emt 0:01:04]} Nd4 {[%emt 0:01:42]} 43. h5 {[%emt 0:00:28]} Nxf5 {[%emt 0:00:27]} 44. Rf6 {[%emt 0:00:23]} Ng3+ {[%emt 0:00:16]} 45. Kg2 {[%emt 0:00:04]} Be7 {[%emt 0:00:14]} 46. Rb6 {[%emt 0:00:52]} Nxh5 {[%emt 0:01:18]} 47. Rxb7+ {[%emt 0:00:04]} Kd6 {[%emt 0:00:21]} 48. Rb6+ {[%emt 0:01:24]} Ke5 1/2-1/2

[Event "7th Iberoamerican-ch 2019"]
[Site "Linares"]
[Date "2019.08.14"]
[Round "5.3"]
[White "Flores, Diego"]
[Black "Huerga Leache, Mikel"]
[Result "1/2-1/2"]
[ECO "A05"]
[WhiteElo "2604"]
[BlackElo "2440"]
[Annotator "ChessBase"]
[PlyCount "89"]
[EventDate "2019.08.10"]
[EventType "swiss"]
[EventCountry "ESP"]
[SourceTitle "playchess.com"]
[Source "ChessBase"]
[SourceQuality "1"]
[TimeControl "5400+30"]

1. Nf3 {[%emt 0:02:02]} Nf6 {[%emt 0:00:00]} 2. g3 {[%emt 0:02:13]} b6 {[%emt 0:00:01]} 3. Bg2 {[%emt 0:01:49]} Bb7 {[%emt 0:00:08]} 4. O-O {[%emt 0:01:39]} g6 {[%emt 0:00:53]} 5. c4 {[%emt 0:05:36]} Bg7 {[%emt 0:00:41]} 6. Nc3 {[%emt 0:05:18]} O-O {[%emt 0:00:44]} 7. d3 {[%emt 0:01:32]} d5 {[%emt 0:00:26]} 8. Ne5 {[%emt 0:04:11]} Nbd7 {[%emt 0:06:12]} 9. d4 {[%emt 0:04:40]} e6 {[%emt 0:05:33]} 10. Bg5 {[%emt 0:08:04]} h6 {[%emt 0:02:30]} 11. Nxd7 {[%emt 0:04:37]} Qxd7 {[%emt 0:00:42]} 12. Bxf6 {[%emt 0:00:07]} Bxf6 {[%emt 0:00:10]} 13. cxd5 {[%emt 0:00:08]} Bxd5 {[%emt 0:19:52]} 14. Nxd5 {[%emt 0:00:55]} exd5 {[%emt 0:00:15]} 15. Rc1 {[%emt 0:02:48]} Rfd8 {[%emt 0:04:49]} 16. e3 {[%emt 0:01:13]} Rac8 {[%emt 0:03:24]} 17. b4 {[%emt 0:02:00]} Be7 {[%emt 0:01:50]} 18. Qb3 {[%emt 0:03:00]} c5 {[%emt 0:01:06]} 19. bxc5 {[%emt 0:02:51]} bxc5 {[%emt 0:00:08]} 20. dxc5 {[%emt 0:00:09]} Bxc5 {[%emt 0:07:11]} 21. Rfd1 {[%emt 0:07:56]} d4 {[%emt 0:01:40]} 22. exd4 {[%emt 0:20:04]} Bxd4 {[%emt 0:02:47]} 23. Rxc8 {[%emt 0:00:17]} Qxc8 {[%emt 0:15:50]} 24. Bd5 {[%emt 0:00:23]} Qc5 {[%emt 0:00:19]} 25. Bxf7+ {[%emt 0:00:23]} Kg7 {[%emt 0:00:17]} 26. Qb7 {[%emt 0:01:55]} Qb6 {[%emt 0:07:54]} 27. Qxb6 {[%emt 0:02:39]} Bxb6 {[%emt 0:00:14]} 28. Bd5 {[%emt 0:01:09]} g5 {[%emt 0:01:49]} 29. Kg2 {[%emt 0:00:12]} Kf6 {[%emt 0:01:13]} 30. f4 {[%emt 0:00:51]} gxf4 {[%emt 0:00:14]} 31. gxf4 {[%emt 0:00:11]} Rd6 {[%emt 0:01:49]} 32. Kf3 {[%emt 0:00:25]} Rd8 {[%emt 0:00:26]} 33. h4 {[%emt 0:05:42]} h5 {[%emt 0:04:09]} 34. Rd3 {[%emt 0:03:08]} Rd7 {[%emt 0:01:12]} 35. Rd2 {[%emt 0:01:34]} Rd8 {[%emt 0:00:37]} 36. Rd1 {[%emt 0:01:37]} Rd7 {[%emt 0:00:29]} 37. Bb3 {[%emt 0:00:52]} Rxd1 {[%emt 0:00:11]} 38. Bxd1 {[%emt 0:00:06]} Bd8 {[%emt 0:00:31]} 39. Kg3 {[%emt 0:01:03]} Kg6 {[%emt 0:00:10]} 40. Bc2+ {[%emt 0:00:30]} Kh6 {[%emt 0:00:21]} 41. Ba4 {[%emt 0:00:22]} Bf6 {[%emt 0:01:07]} 42. Be8 {[%emt 0:00:08]} Be7 {[%emt 0:00:18]} 43. f5 {[%emt 0:00:40]} Bf6 {[%emt 0:00:16]} 44. a4 {[%emt 0:00:17]} a5 {[%emt 0:01:00]} 45. Bf7 {[%emt 0:00:27]} 1/2-1/2

[Event "7th Iberoamerican-ch 2019"]
[Site "Linares"]
[Date "2019.08.14"]
[Round "5.5"]
[White "Espinosa Aranda, Angel"]
[Black "Salgado Lopez, Ivan"]
[Result "1/2-1/2"]
[ECO "B06"]
[WhiteElo "2497"]
[BlackElo "2596"]
[Annotator "ChessBase"]
[PlyCount "120"]
[EventDate "2019.08.10"]
[EventType "swiss"]
[EventCountry "ESP"]
[SourceTitle "playchess.com"]
[Source "ChessBase"]
[SourceQuality "1"]
[TimeControl "5400+30"]

1. e4 {[%emt 0:00:00]} g6 {[%emt 0:00:43]} 2. d4 {[%emt 0:00:37]} Bg7 {[%emt 0:00:08]} 3. Nc3 {[%emt 0:01:28]} d6 {[%emt 0:00:09]} 4. Bg5 {[%emt 0:03:38]} c6 {[%emt 0:00:21]} 5. Qd2 {[%emt 0:00:35]} b5 {[%emt 0:00:22]} 6. f4 {[%emt 0:00:56]} b4 {[%emt 0:00:45]} 7. Nd1 {[%emt 0:01:17]} Nd7 {[%emt 0:00:19]} 8. Nf3 {[%emt 0:03:11]} Rb8 {[%emt 0:04:32]} 9. a3 {[%emt 0:04:01]} b3 {[%emt 0:02:04]} 10. c3 {[%emt 0:04:50]} Ngf6 {[%emt 0:07:35]} 11. Bd3 {[%emt 0:02:06]} d5 {[%emt 0:01:20]} 12. Nf2 {[%emt 0:07:04]} dxe4 {[%emt 0:03:20]} 13. Nxe4 {[%emt 0:00:06]} O-O {[%emt 0:08:31]} 14. O-O {[%emt 0:06:56]} c5 {[%emt 0:05:03]} 15. Bxf6 {[%emt 0:17:31]} exf6 {[%emt 0:03:16]} 16. Nxc5 {[%emt 0:01:15]} Nxc5 {[%emt 0:00:44]} 17. dxc5 {[%emt 0:00:05]} Qd5 {[%emt 0:16:11]} 18. Qe3 {[%emt 0:03:31]} Bb7 {[%emt 0:00:11]} 19. Rad1 {[%emt 0:02:18]} Qc6 {[%emt 0:15:59]} 20. Qf2 {[%emt 0:06:33]} Ba8 {[%emt 0:08:32]} 21. Bc4 {[%emt 0:02:53]} Rfc8 {[%emt 0:01:20]} 22. Rd6 {[%emt 0:06:56]} Qc7 {[%emt 0:01:50]} 23. Nd4 {[%emt 0:03:32]} Kh8 {[%emt 0:04:37]} 24. Bxb3 {[%emt 0:07:07]} Qxc5 {[%emt 0:03:30]} 25. Rd7 {[%emt 0:00:06]} Rc7 {[%emt 0:04:48]} 26. Rxf7 {[%emt 0:02:14]} Rxf7 {[%emt 0:02:11]} 27. Bxf7 {[%emt 0:00:05]} f5 {[%emt 0:00:07]} 28. Re1 {[%emt 0:03:22]} Be4 {[%emt 0:00:17]} 29. Ba2 {[%emt 0:00:26]} Bf6 {[%emt 0:03:46]} 30. Re2 {[%emt 0:03:24]} Rd8 {[%emt 0:00:59]} 31. Rd2 {[%emt 0:00:08]} h5 {[%emt 0:00:36]} 32. Nf3 {[%emt 0:01:00]} Qc7 {[%emt 0:00:35]} 33. Ne5 {[%emt 0:00:45]} Rxd2 {[%emt 0:00:45]} 34. Qxd2 {[%emt 0:00:07]} Qb6+ {[%emt 0:01:00]} 35. Qf2 {[%emt 0:00:36]} Qa6 {[%emt 0:00:14]} 36. Qc5 {[%emt 0:01:11]} Kh7 {[%emt 0:00:28]} 37. Bc4 {[%emt 0:01:46]} Qb7 {[%emt 0:00:30]} 38. Qf8 {[%emt 0:00:21]} Qb6+ {[%emt 0:00:39]} 39. Kf1 {[%emt 0:00:58]} Bxg2+ {[%emt 0:00:14]} 40. Kxg2 {[%emt 0:00:21]} Qxb2+ {[%emt 0:00:05]} 41. Kg1 {[%emt 0:01:20]} Qc1+ {[%emt 0:00:26]} 42. Bf1 {[%emt 0:00:17]} Qe3+ {[%emt 0:00:57]} 43. Kg2 {[%emt 0:00:04]} Qd2+ {[%emt 0:00:54]} 44. Kh1 {[%emt 0:00:18]} Bxe5 {[%emt 0:00:35]} 45. fxe5 {[%emt 0:00:07]} Qf2 {[%emt 0:00:11]} 46. Qf7+ {[%emt 0:00:23]} Kh6 {[%emt 0:00:06]} 47. Qc4 {[%emt 0:00:20]} Qf3+ {[%emt 0:00:21]} 48. Bg2 {[%emt 0:00:13]} Qe3 {[%emt 0:00:15]} 49. Qf1 {[%emt 0:01:33]} Qxc3 {[%emt 0:00:34]} 50. Qf4+ {[%emt 0:00:55]} Kg7 {[%emt 0:00:21]} 51. h4 {[%emt 0:00:08]} Qxa3 {[%emt 0:00:07]} 52. Qd4 {[%emt 0:00:23]} Qg3 {[%emt 0:01:41]} 53. Qxa7+ {[%emt 0:01:15]} Kh6 {[%emt 0:00:44]} 54. Qe7 {[%emt 0:00:26]} f4 {[%emt 0:00:13]} 55. Qf6 {[%emt 0:01:31]} Qe1+ {[%emt 0:00:17]} 56. Kh2 {[%emt 0:00:06]} Qg3+ {[%emt 0:00:15]} 57. Kg1 {[%emt 0:00:06]} Qe3+ {[%emt 0:00:58]} 58. Kf1 {[%emt 0:00:28]} Qd3+ {[%emt 0:00:29]} 59. Ke1 {[%emt 0:01:10]} Qe3+ {[%emt 0:00:13]} 60. Kf1 {[%emt 0:00:13]} Qd3+ {[%emt 0:00:20]} 1/2-1/2

[Event "7th Iberoamerican-ch 2019"]
[Site "Linares"]
[Date "2019.08.14"]
[Round "5.6"]
[White "Moreno Ruiz, Javier"]
[Black "Vazquez Igarza, Renier"]
[Result "1/2-1/2"]
[ECO "D34"]
[WhiteElo "2473"]
[BlackElo "2570"]
[Annotator "ChessBase"]
[PlyCount "40"]
[EventDate "2019.08.10"]
[EventType "swiss"]
[EventCountry "ESP"]
[SourceTitle "playchess.com"]
[Source "ChessBase"]
[SourceQuality "1"]
[TimeControl "5400+30"]

1. c4 {[%emt 0:00:00]} e6 {[%emt 0:01:07]} 2. g3 {[%emt 0:00:25]} c5 {[%emt 0:02:25]} 3. Bg2 {[%emt 0:00:22]} Nc6 {[%emt 0:00:02]} 4. Nf3 {[%emt 0:00:47]} Nf6 {[%emt 0:02:01]} 5. O-O {[%emt 0:01:29]} d5 {[%emt 0:00:06]} 6. cxd5 {[%emt 0:02:12]} exd5 {[%emt 0:00:08]} 7. d4 {[%emt 0:00:23]} Be7 {[%emt 0:00:07]} 8. Nc3 {[%emt 0:01:59]} O-O {[%emt 0:00:12]} 9. Bg5 {[%emt 0:00:45]} cxd4 {[%emt 0:00:40]} 10. Nxd4 {[%emt 0:00:06]} h6 {[%emt 0:00:07]} 11. Be3 {[%emt 0:00:49]} Re8 {[%emt 0:00:14]} 12. Rc1 {[%emt 0:00:46]} Bf8 {[%emt 0:01:52]} 13. Na4 {[%emt 0:02:13]} Bd7 {[%emt 0:00:10]} 14. Nxc6 {[%emt 0:02:17]} Bxc6 {[%emt 0:00:30]} 15. Nc5 {[%emt 0:01:58]} Ne4 {[%emt 0:00:29]} 16. Nxe4 {[%emt 0:02:19]} dxe4 {[%emt 0:00:14]} 17. Qxd8 {[%emt 0:00:35]} Raxd8 {[%emt 0:00:44]} 18. Rfd1 {[%emt 0:00:49]} a6 {[%emt 0:04:24]} 19. Bb6 {[%emt 0:02:15]} Rd5 {[%emt 0:08:21]} 20. Rxd5 {[%emt 0:03:14]} Bxd5 {[%emt 0:00:08]} 1/2-1/2

[Event "7th Iberoamerican-ch 2019"]
[Site "Linares"]
[Date "2019.08.14"]
[Round "5.7"]
[White "Albornoz Cabrera, Carlos Daniel"]
[Black "Fluvia Poyatos, Jordi"]
[Result "1-0"]
[ECO "B12"]
[WhiteElo "2566"]
[BlackElo "2455"]
[Annotator "ChessBase"]
[PlyCount "75"]
[EventDate "2019.08.10"]
[EventType "swiss"]
[EventCountry "ESP"]
[SourceTitle "playchess.com"]
[Source "ChessBase"]
[SourceQuality "1"]
[TimeControl "5400+30"]

1. e4 {[%emt 0:00:00]} c6 {[%emt 0:00:02]} 2. d4 {[%emt 0:00:00]} d5 {[%emt 0:00:06]} 3. e5 {[%emt 0:00:00]} c5 {[%emt 0:00:28]} 4. dxc5 {[%emt 0:00:00]} e6 {[%emt 0:00:19]} 5. a3 {[%emt 0:00:20]} Bxc5 {[%emt 0:00:44]} 6. b4 {[%emt 0:00:16]} Bb6 {[%emt 0:00:23]} 7. Qg4 {[%emt 0:00:36]} Ne7 {[%emt 0:07:46]} 8. Qxg7 {[%emt 0:00:17]} Rg8 {[%emt 0:00:39]} 9. Qxh7 {[%emt 0:00:24]} Nbc6 {[%emt 0:06:19]} 10. Nf3 {[%emt 0:04:35]} Qc7 {[%emt 0:01:30]} 11. Bb2 {[%emt 0:03:53]} Bd7 {[%emt 0:01:18]} 12. c4 {[%emt 0:09:26]} dxc4 {[%emt 0:09:27]} 13. Nbd2 {[%emt 0:00:52]} c3 {[%emt 0:09:18]} 14. Bxc3 {[%emt 0:00:06]} O-O-O {[%emt 0:01:51]} 15. Qc2 {[%emt 0:09:41]} Nf5 {[%emt 0:06:16]} 16. Nc4 {[%emt 0:02:06]} Kb8 {[%emt 0:10:51]} 17. O-O-O {[%emt 0:06:42]} Nce7 {[%emt 0:01:53]} 18. Rg1 {[%emt 0:08:34]} Nd5 {[%emt 0:03:38]} 19. Bb2 {[%emt 0:01:21]} Rc8 {[%emt 0:02:19]} 20. Kb1 {[%emt 0:04:13]} Bb5 {[%emt 0:11:56]} 21. Rc1 {[%emt 0:00:37]} Qe7 {[%emt 0:07:25]} 22. Qd2 {[%emt 0:04:12]} Rgd8 {[%emt 0:02:46]} 23. Nxb6 {[%emt 0:02:50]} Nxb6 {[%emt 0:02:34]} 24. Rxc8+ {[%emt 0:00:22]} Nxc8 {[%emt 0:00:10]} 25. Qc2 {[%emt 0:04:13]} Bxf1 {[%emt 0:01:45]} 26. Rxf1 {[%emt 0:00:05]} Nb6 {[%emt 0:00:17]} 27. Rc1 {[%emt 0:01:38]} Nd5 {[%emt 0:01:32]} 28. g3 {[%emt 0:02:16]} Qd7 {[%emt 0:00:47]} 29. Ng5 {[%emt 0:01:00]} Nb6 {[%emt 0:02:15]} 30. Ne4 {[%emt 0:01:45]} Rc8 {[%emt 0:01:20]} 31. Nc5 {[%emt 0:00:40]} Qd5 {[%emt 0:00:33]} 32. a4 {[%emt 0:03:50]} Rc6 {[%emt 0:04:53]} 33. a5 {[%emt 0:01:07]} Nd4 {[%emt 0:01:58]} 34. Qd3 {[%emt 0:00:37]} Nf3 {[%emt 0:00:17]} 35. axb6 {[%emt 0:02:29]} Rxc5 {[%emt 0:00:25]} 36. Qxd5 {[%emt 0:00:25]} Rxd5 {[%emt 0:00:22]} 37. Rc8+ {[%emt 0:01:16]} Kxc8 {[%emt 0:00:12]} 38. bxa7 {[%emt 0:00:04]} 1-0

[Event "7th Iberoamerican-ch 2019"]
[Site "Linares"]
[Date "2019.08.14"]
[Round "5.8"]
[White "Cruz, Cristhian"]
[Black "Plazuelo Pascual, Juan"]
[Result "1/2-1/2"]
[ECO "A40"]
[WhiteElo "2559"]
[BlackElo "2411"]
[Annotator "ChessBase"]
[PlyCount "70"]
[EventDate "2019.08.10"]
[EventType "swiss"]
[EventCountry "ESP"]
[SourceTitle "playchess.com"]
[Source "ChessBase"]
[SourceQuality "1"]
[TimeControl "5400+30"]

1. d4 {[%emt 0:01:04]} e6 {[%emt 0:00:00]} 2. c4 {[%emt 0:00:25]} b6 {[%emt 0:00:00]} 3. Nc3 {[%emt 0:01:35]} Bb7 {[%emt 0:00:11]} 4. a3 {[%emt 0:00:05]} Nf6 {[%emt 0:01:34]} 5. Nf3 {[%emt 0:00:16]} d5 {[%emt 0:00:46]} 6. Qc2 {[%emt 0:00:22]} Be7 {[%emt 0:03:16]} 7. cxd5 {[%emt 0:00:59]} exd5 {[%emt 0:02:06]} 8. g3 {[%emt 0:02:57]} O-O {[%emt 0:02:27]} 9. Bg2 {[%emt 0:00:04]} Nbd7 {[%emt 0:02:02]} 10. Bf4 {[%emt 0:01:30]} c6 {[%emt 0:10:33]} 11. O-O {[%emt 0:00:56]} Re8 {[%emt 0:03:20]} 12. Rad1 {[%emt 0:04:32]} Bf8 {[%emt 0:09:55]} 13. Rfe1 {[%emt 0:03:24]} h6 {[%emt 0:04:13]} 14. Ne5 {[%emt 0:30:56]} Nxe5 {[%emt 0:02:06]} 15. dxe5 {[%emt 0:09:20]} Nh5 {[%emt 0:01:16]} 16. b4 {[%emt 0:00:12]} Rc8 {[%emt 0:08:09]} 17. Qb3 {[%emt 0:02:51]} a6 {[%emt 0:06:40]} 18. Na4 {[%emt 0:17:24]} Nxf4 {[%emt 0:01:37]} 19. gxf4 {[%emt 0:00:02]} b5 {[%emt 0:02:47]} 20. Nb2 {[%emt 0:00:16]} a5 {[%emt 0:02:42]} 21. Nd3 {[%emt 0:00:52]} Ra8 {[%emt 0:00:35]} 22. e4 {[%emt 0:04:40]} axb4 {[%emt 0:05:04]} 23. axb4 {[%emt 0:00:13]} Ra4 {[%emt 0:00:10]} 24. f5 {[%emt 0:03:58]} Qa8 {[%emt 0:00:58]} 25. exd5 {[%emt 0:02:00]} cxd5 {[%emt 0:00:27]} 26. e6 {[%emt 0:06:15]} fxe6 {[%emt 0:06:07]} 27. fxe6 {[%emt 0:00:04]} Qd8 {[%emt 0:00:04]} 28. Kh1 {[%emt 0:03:33]} Qh4 {[%emt 0:07:57]} 29. e7 {[%emt 0:01:05]} Rxe7 {[%emt 0:02:06]} 30. Bxd5+ {[%emt 0:00:05]} Kh7 {[%emt 0:01:22]} 31. Bxb7 {[%emt 0:00:33]} Rxb7 {[%emt 0:00:04]} 32. Ne5 {[%emt 0:00:17]} Qf6 {[%emt 0:01:07]} 33. Qd3+ {[%emt 0:00:43]} g6 {[%emt 0:00:07]} 34. Rg1 {[%emt 0:02:07]} Rg7 {[%emt 0:02:05]} 35. Nd7 {[%emt 0:01:08]} Qc6+ 1/2-1/2

[Event "7th Iberoamerican-ch 2019"]
[Site "Linares"]
[Date "2019.08.14"]
[Round "5.9"]
[White "Escobar Forero, Alder"]
[Black "Fier, Alexandr"]
[Result "1-0"]
[ECO "B85"]
[WhiteElo "2477"]
[BlackElo "2558"]
[Annotator "ChessBase"]
[PlyCount "81"]
[EventDate "2019.08.10"]
[EventType "swiss"]
[EventCountry "ESP"]
[SourceTitle "playchess.com"]
[Source "ChessBase"]
[SourceQuality "1"]
[TimeControl "5400+30"]

1. e4 {[%emt 0:00:00]} c5 {[%emt 0:00:00]} 2. Nf3 {[%emt 0:00:00]} e6 {[%emt 0:00:00]} 3. d4 {[%emt 0:01:05]} cxd4 {[%emt 0:00:00]} 4. Nxd4 {[%emt 0:00:07]} Nc6 {[%emt 0:00:00]} 5. Nc3 {[%emt 0:00:44]} Qc7 {[%emt 0:00:00]} 6. Be3 {[%emt 0:02:00]} a6 {[%emt 0:00:00]} 7. Be2 {[%emt 0:02:02]} Nf6 {[%emt 0:00:06]} 8. O-O {[%emt 0:00:13]} Be7 {[%emt 0:00:03]} 9. f4 {[%emt 0:14:28]} d6 {[%emt 0:00:12]} 10. Qe1 {[%emt 0:02:35]} O-O {[%emt 0:00:07]} 11. Qg3 {[%emt 0:00:49]} Nxd4 {[%emt 0:00:40]} 12. Bxd4 {[%emt 0:00:07]} b5 {[%emt 0:00:02]} 13. a3 {[%emt 0:00:50]} Bb7 {[%emt 0:00:04]} 14. Rad1 {[%emt 0:00:24]} Bc6 {[%emt 0:05:16]} 15. Bf3 {[%emt 0:09:59]} a5 {[%emt 0:07:13]} 16. b4 {[%emt 0:15:32]} axb4 {[%emt 0:01:31]} 17. axb4 {[%emt 0:00:05]} Ra3 {[%emt 0:03:11]} 18. Rd3 {[%emt 0:01:03]} Rfa8 {[%emt 0:00:07]} 19. e5 {[%emt 0:07:03]} Ne8 {[%emt 0:01:55]} 20. f5 {[%emt 0:09:26]} d5 {[%emt 0:14:53]} 21. fxe6 {[%emt 0:13:41]} fxe6 {[%emt 0:00:10]} 22. Bh5 {[%emt 0:02:12]} Bxb4 {[%emt 0:01:38]} 23. Bf7+ {[%emt 0:01:08]} Qxf7 {[%emt 0:02:04]} 24. Rxf7 {[%emt 0:00:06]} Kxf7 {[%emt 0:00:02]} 25. Rf3+ {[%emt 0:03:04]} Kg8 {[%emt 0:03:49]} 26. Qf4 {[%emt 0:00:08]} h6 {[%emt 0:00:28]} 27. Qf7+ {[%emt 0:00:05]} Kh8 {[%emt 0:00:07]} 28. Qxe6 {[%emt 0:00:13]} Ra1+ {[%emt 0:00:06]} 29. Kf2 {[%emt 0:00:29]} R1a6 {[%emt 0:00:04]} 30. Qf7 {[%emt 0:01:21]} Ra1 {[%emt 0:03:22]} 31. e6 {[%emt 0:05:24]} Rc1 {[%emt 0:00:31]} 32. Qg6 {[%emt 0:02:52]} Raa1 {[%emt 0:00:04]} 33. Rf7 {[%emt 0:02:33]} Rf1+ {[%emt 0:00:06]} 34. Kg3 {[%emt 0:01:56]} Bd6+ {[%emt 0:00:04]} 35. Kh3 {[%emt 0:00:24]} Bf8 {[%emt 0:00:04]} 36. Qxh6+ {[%emt 0:02:54]} Kg8 {[%emt 0:00:04]} 37. Qg6 {[%emt 0:00:09]} Rae1 {[%emt 0:00:18]} 38. Ne2 {[%emt 0:00:22]} b4 {[%emt 0:01:08]} 39. Ng3 {[%emt 0:00:19]} Rxe6 {[%emt 0:01:10]} 40. Rxf8+ {[%emt 0:00:16]} Kxf8 {[%emt 0:00:03]} 41. Qxe6 {[%emt 0:00:07]} 1-0

[Event "7th Iberoamerican-ch 2019"]
[Site "Linares"]
[Date "2019.08.14"]
[Round "5.11"]
[White "Vega Gutierrez, Sabrina"]
[Black "Cuenca Jimenez, Jose Fernando"]
[Result "0-1"]
[ECO "C80"]
[WhiteElo "2385"]
[BlackElo "2515"]
[Annotator "ChessBase"]
[PlyCount "54"]
[EventDate "2019.08.10"]
[EventType "swiss"]
[EventCountry "ESP"]
[SourceTitle "playchess.com"]
[Source "ChessBase"]
[SourceQuality "1"]
[TimeControl "5400+30"]

1. e4 {[%emt 0:00:00]} e5 {[%emt 0:00:00]} 2. Nf3 {[%emt 0:00:00]} Nc6 {[%emt 0:00:00]} 3. Bb5 {[%emt 0:00:02]} a6 {[%emt 0:00:25]} 4. Ba4 {[%emt 0:00:11]} Nf6 {[%emt 0:00:37]} 5. O-O {[%emt 0:00:15]} Nxe4 {[%emt 0:00:53]} 6. d4 {[%emt 0:02:03]} b5 {[%emt 0:00:20]} 7. Bb3 {[%emt 0:00:10]} d5 {[%emt 0:00:09]} 8. dxe5 {[%emt 0:00:14]} Be6 {[%emt 0:00:11]} 9. Be3 {[%emt 0:11:52]} Be7 {[%emt 0:01:39]} 10. c3 {[%emt 0:06:54]} O-O {[%emt 0:00:30]} 11. Nbd2 {[%emt 0:04:10]} Nxd2 {[%emt 0:00:13]} 12. Qxd2 {[%emt 0:01:39]} Na5 {[%emt 0:00:02]} 13. Nd4 {[%emt 0:20:30]} Nc4 {[%emt 0:00:46]} 14. Bxc4 {[%emt 0:06:10]} dxc4 {[%emt 0:00:04]} 15. f4 {[%emt 0:05:15]} Bd7 {[%emt 0:00:07]} 16. f5 {[%emt 0:01:35]} c5 {[%emt 0:01:03]} 17. f6 {[%emt 0:02:18]} cxd4 {[%emt 0:02:46]} 18. Qxd4 {[%emt 0:04:37]} Re8 {[%emt 0:09:31]} 19. Rad1 {[%emt 0:00:35]} gxf6 {[%emt 0:13:52]} 20. exf6 {[%emt 0:14:56]} Bf8 {[%emt 0:00:24]} 21. Qf4 {[%emt 0:00:09]} Qc8 {[%emt 0:33:09]} 22. Rd5 {[%emt 0:00:06]} Qc6 {[%emt 0:00:49]} 23. Rfd1 {[%emt 0:11:29]} Qe6 {[%emt 0:02:51]} 24. Qg3+ {[%emt 0:02:00]} Kh8 {[%emt 0:00:17]} 25. Bf2 {[%emt 0:01:49]} Bc6 {[%emt 0:02:48]} 26. Rg5 {[%emt 0:01:19]} Bh6 {[%emt 0:01:26]} 27. Rh5 {[%emt 0:02:37]} Qe2 {[%emt 0:02:41]} 0-1